[Event "Titled Tuesday Blitz August 1 Late 2023"]
[White "Herman, Daniel"]
[Black "Krzyzanowski, Marcin"]
[WhiteFideId "30935008"]
[BlackFideId "1132199"]
[WhiteElo "2437"]
[BlackElo "2774"]
[Result "0-1"]
[Round "1"]
[TimeControl "180+1"]
[Date "2023.08.01"]
[WhiteClock "0:00:00"]
[BlackClock "0:00:04"]
[Board "49"]

1. c4 {[%clk 0:03:00]}  e5 {[%clk 0:02:59]} 2. Nc3 {[%clk 0:02:57]}  Bb4 {[%clk 0:02:58]} 3. Nd5 {[%clk 0:02:57]}  a5 {[%clk 0:02:57]} 4. Nxb4 {[%clk 0:02:32]}  axb4 {[%clk 0:02:57]} 5. b3 {[%clk 0:02:27]}  Nc6 {[%clk 0:02:52]} 6. Bb2 {[%clk 0:02:27]}  d5 {[%clk 0:02:45]} 7. cxd5 {[%clk 0:02:25]}  Qxd5 {[%clk 0:02:46]} 8. Nf3 {[%clk 0:02:22]}  Nf6 {[%clk 0:02:44]} 9. d3 {[%clk 0:02:18]}  O-O {[%clk 0:02:34]} 10. g3 {[%clk 0:02:16]}  Nd4 {[%clk 0:02:05]} 11. Bg2 {[%clk 0:02:16]}  Bg4 {[%clk 0:02:01]} 12. O-O {[%clk 0:02:04]}  Bxf3 {[%clk 0:01:35]} 13. exf3 {[%clk 0:02:05]}  Qd6 {[%clk 0:01:34]} 14. Re1 {[%clk 0:01:25]}  c5 {[%clk 0:01:32]} 15. f4 {[%clk 0:01:11]}  exf4 {[%clk 0:01:30]} 16. Bxb7 {[%clk 0:01:11]}  Rae8 {[%clk 0:01:26]} 17. Bxd4 {[%clk 0:00:46]}  Qxd4 {[%clk 0:01:23]} 18. Qf3 {[%clk 0:00:40]}  fxg3 {[%clk 0:01:18]} 19. hxg3 {[%clk 0:00:39]}  Ng4 {[%clk 0:01:11]} 20. Be4 {[%clk 0:00:33]}  Ne5 {[%clk 0:01:05]} 21. Qe3 {[%clk 0:00:21]}  Qd6 {[%clk 0:00:42]} 22. Rac1 {[%clk 0:00:20]}  Nd7 {[%clk 0:00:33]} 23. Qf3 {[%clk 0:00:17]}  g6 {[%clk 0:00:31]} 24. Bd5 {[%clk 0:00:16]}  Re5 {[%clk 0:00:30]} 25. Bc4 {[%clk 0:00:16]}  Kg7 {[%clk 0:00:28]} 26. Qf4 {[%clk 0:00:11]}  f6 {[%clk 0:00:27]} 27. Re3 {[%clk 0:00:09]}  g5 {[%clk 0:00:24]} 28. Qf3 {[%clk 0:00:09]}  Rfe8 {[%clk 0:00:20]} 29. Rce1 {[%clk 0:00:09]}  R8e7 {[%clk 0:00:20]} 30. Rxe5 {[%clk 0:00:06]}  Nxe5 {[%clk 0:00:21]} 31. Qf5 {[%clk 0:00:04]}  Nf3+ {[%clk 0:00:19]} 32. Qxf3 {[%clk 0:00:03]}  Rxe1+ {[%clk 0:00:20]} 33. Kg2 {[%clk 0:00:04]}  Re8 {[%clk 0:00:17]} 34. Qb7+ {[%clk 0:00:04]}  Qe7 {[%clk 0:00:17]} 35. Qf3 {[%clk 0:00:04]}  Rb8 {[%clk 0:00:15]} 36. Bd5 {[%clk 0:00:04]}  Rd8 {[%clk 0:00:15]} 37. Be4 {[%clk 0:00:05]}  Qf7 {[%clk 0:00:14]} 38. Qf5 {[%clk 0:00:05]}  Kh8 {[%clk 0:00:04]} 39. Qxc5 {[%clk 0:00:06]}  Rf8 {[%clk 0:00:03]} 40. Qf5 {[%clk 0:00:06]}  Qg6 {[%clk 0:00:03]} 41. Qxg6 {[%clk 0:00:05]}  hxg6 {[%clk 0:00:04]} 42. Bxg6 {[%clk 0:00:06]}  Ra8 {[%clk 0:00:04]} 43. Bf7 {[%clk 0:00:07]}  Rxa2 {[%clk 0:00:05]} 44. Bc4 {[%clk 0:00:07]}  Kg7 {[%clk 0:00:05]} 45. Kf3 {[%clk 0:00:08]}  f5 {[%clk 0:00:06]} 46. Ke3 {[%clk 0:00:08]}  Kf6 {[%clk 0:00:06]} 47. d4 {[%clk 0:00:08]}  Rc2 {[%clk 0:00:06]} 48. f4 {[%clk 0:00:06]}  Rc3+ {[%clk 0:00:05]} 49. Kf2 {[%clk 0:00:07]}  g4 {[%clk 0:00:05]} 50. Kg2 {[%clk 0:00:06]}  Rf3 {[%clk 0:00:05]} 51. d5 {[%clk 0:00:06]}  Ke7 {[%clk 0:00:04]} 52. Bb5 {[%clk 0:00:05]}  Rxb3 {[%clk 0:00:03]} 53. Ba6 {[%clk 0:00:00]}  Rc3 {[%clk 0:00:04]} 0-1


[Site "https://www.chess.com"]

[Event "Titled Tuesday Blitz August 1 Late 2023"]
[White "Mekhitarian, Krikor Sevag"]
[Black "Cheng, Xiao"]
[WhiteFideId "2107660"]
[BlackFideId "2022915"]
[WhiteElo "2771"]
[BlackElo "2435"]
[Result "1-0"]
[Round "1"]
[TimeControl "180+1"]
[Date "2023.08.01"]
[WhiteClock "0:00:26"]
[BlackClock "0:00:31"]
[Board "50"]

1. Nf3 {[%clk 0:02:57]}  d5 {[%clk 0:02:55]} 2. c4 {[%clk 0:02:57]}  e6 {[%clk 0:02:54]} 3. d4 {[%clk 0:02:56]}  Nf6 {[%clk 0:02:53]} 4. cxd5 {[%clk 0:02:56]}  exd5 {[%clk 0:02:53]} 5. Nc3 {[%clk 0:02:57]}  Bb4 {[%clk 0:02:52]} 6. Bf4 {[%clk 0:02:56]}  O-O {[%clk 0:02:51]} 7. e3 {[%clk 0:02:56]}  c5 {[%clk 0:02:51]} 8. Bd3 {[%clk 0:02:48]}  Nc6 {[%clk 0:02:45]} 9. dxc5 {[%clk 0:02:47]}  Qa5 {[%clk 0:02:44]} 10. O-O {[%clk 0:02:46]}  Bxc3 {[%clk 0:02:43]} 11. bxc3 {[%clk 0:02:41]}  Qxc5 {[%clk 0:02:43]} 12. Nd4 {[%clk 0:02:38]}  Ne4 {[%clk 0:02:28]} 13. Rc1 {[%clk 0:02:38]}  Bd7 {[%clk 0:02:20]} 14. Qc2 {[%clk 0:02:31]}  Rfe8 {[%clk 0:02:17]} 15. f3 {[%clk 0:02:24]}  Nf6 {[%clk 0:02:15]} 16. Bg5 {[%clk 0:02:24]}  h6 {[%clk 0:02:04]} 17. Bxf6 {[%clk 0:02:23]}  gxf6 {[%clk 0:02:05]} 18. Rfe1 {[%clk 0:02:21]}  Nxd4 {[%clk 0:02:00]} 19. cxd4 {[%clk 0:02:10]}  Qxc2 {[%clk 0:02:00]} 20. Rxc2 {[%clk 0:02:11]}  Rac8 {[%clk 0:01:59]} 21. Kf2 {[%clk 0:02:07]}  f5 {[%clk 0:01:53]} 22. Rec1 {[%clk 0:02:06]}  Kg7 {[%clk 0:01:52]} 23. Rc7 {[%clk 0:02:01]}  Be6 {[%clk 0:01:42]} 24. Ke2 {[%clk 0:01:49]}  Kf6 {[%clk 0:01:42]} 25. Kd2 {[%clk 0:01:48]}  Rxc7 {[%clk 0:01:41]} 26. Rxc7 {[%clk 0:01:48]}  Re7 {[%clk 0:01:41]} 27. Rc3 {[%clk 0:01:40]}  Rd7 {[%clk 0:01:40]} 28. a4 {[%clk 0:01:33]}  b6 {[%clk 0:01:39]} 29. Bb5 {[%clk 0:01:32]}  Rb7 {[%clk 0:01:38]} 30. Kd3 {[%clk 0:01:27]}  Ke7 {[%clk 0:01:38]} 31. e4 {[%clk 0:01:14]}  fxe4+ {[%clk 0:01:37]} 32. fxe4 {[%clk 0:01:15]}  dxe4+ {[%clk 0:01:35]} 33. Kxe4 {[%clk 0:01:16]}  Bd7 {[%clk 0:01:30]} 34. Kd5 {[%clk 0:01:02]}  Bxb5 {[%clk 0:01:27]} 35. axb5 {[%clk 0:01:03]}  Rd7+ {[%clk 0:01:27]} 36. Ke5 {[%clk 0:01:02]}  f6+ {[%clk 0:01:26]} 37. Ke4 {[%clk 0:01:02]}  Ke6 {[%clk 0:01:26]} 38. Rc6+ {[%clk 0:01:01]}  Kf7 {[%clk 0:01:21]} 39. d5 {[%clk 0:00:56]}  Re7+ {[%clk 0:01:19]} 40. Kd4 {[%clk 0:00:57]}  Re2 {[%clk 0:01:16]} 41. Rc7+ {[%clk 0:00:57]}  Ke8 {[%clk 0:01:15]} 42. Rxa7 {[%clk 0:00:40]}  Rxg2 {[%clk 0:01:15]} 43. Rb7 {[%clk 0:00:41]}  Rxh2 {[%clk 0:01:15]} 44. Rxb6 {[%clk 0:00:41]}  Rd2+ {[%clk 0:01:09]} 45. Kc5 {[%clk 0:00:41]}  Ke7 {[%clk 0:01:01]} 46. Rb7+ {[%clk 0:00:40]}  Ke8 {[%clk 0:01:01]} 47. Kd6 {[%clk 0:00:40]}  h5 {[%clk 0:00:59]} 48. Rh7 {[%clk 0:00:40]}  Rb2 {[%clk 0:00:58]} 49. Ke6 {[%clk 0:00:36]}  Kd8 {[%clk 0:00:57]} 50. d6 {[%clk 0:00:35]}  Re2+ {[%clk 0:00:56]} 51. Kxf6 {[%clk 0:00:36]}  Rf2+ {[%clk 0:00:53]} 52. Ke6 {[%clk 0:00:36]}  Re2+ {[%clk 0:00:53]} 53. Kd5 {[%clk 0:00:37]}  Rd2+ {[%clk 0:00:50]} 54. Kc6 {[%clk 0:00:37]}  Rc2+ {[%clk 0:00:48]} 55. Kb7 {[%clk 0:00:37]}  Rd2 {[%clk 0:00:48]} 56. Rxh5 {[%clk 0:00:32]}  Rxd6 {[%clk 0:00:48]} 57. b6 {[%clk 0:00:32]}  Rd7+ {[%clk 0:00:45]} 58. Kb8 {[%clk 0:00:32]}  Rd1 {[%clk 0:00:43]} 59. b7 {[%clk 0:00:32]}  Kd7 {[%clk 0:00:43]} 60. Rh2 {[%clk 0:00:30]}  Rd3 {[%clk 0:00:41]} 61. Ra2 {[%clk 0:00:28]}  Rb3 {[%clk 0:00:37]} 62. Ka7 {[%clk 0:00:26]}  Kc7 {[%clk 0:00:31]} 63. Rc2+ {[%clk 0:00:26]} 1-0


[Site "https://www.chess.com"]

[Event "Titled Tuesday Blitz August 1 Late 2023"]
[White "Elsa167"]
[Black "Carrasco Miranda, Andres"]
[BlackFideId "3405990"]
[WhiteElo "2765"]
[BlackElo "2433"]
[Result "1-0"]
[Round "1"]
[TimeControl "180+1"]
[Date "2023.08.01"]
[WhiteClock "0:02:07"]
[BlackClock "0:01:26"]
[Board "52"]

1. d4 {[%clk 0:03:00]}  Nf6 {[%clk 0:02:59]} 2. c4 {[%clk 0:03:01]}  g6 {[%clk 0:02:58]} 3. Nc3 {[%clk 0:03:01]}  d5 {[%clk 0:02:58]} 4. Nf3 {[%clk 0:03:00]}  Bg7 {[%clk 0:02:57]} 5. Bg5 {[%clk 0:03:01]}  Ne4 {[%clk 0:02:57]} 6. cxd5 {[%clk 0:03:02]}  Nxg5 {[%clk 0:02:57]} 7. Nxg5 {[%clk 0:03:02]}  e6 {[%clk 0:02:57]} 8. Qd2 {[%clk 0:03:03]}  h6 {[%clk 0:02:58]} 9. Nf3 {[%clk 0:03:03]}  exd5 {[%clk 0:02:58]} 10. e3 {[%clk 0:03:04]}  O-O {[%clk 0:02:58]} 11. b4 {[%clk 0:03:04]}  c6 {[%clk 0:02:58]} 12. Be2 {[%clk 0:03:04]}  a5 {[%clk 0:02:58]} 13. b5 {[%clk 0:03:04]}  Nd7 {[%clk 0:02:58]} 14. bxc6 {[%clk 0:03:03]}  bxc6 {[%clk 0:02:59]} 15. O-O {[%clk 0:03:02]}  Nf6 {[%clk 0:02:52]} 16. Rab1 {[%clk 0:02:54]}  Qd6 {[%clk 0:02:50]} 17. Ne5 {[%clk 0:02:49]}  Ba6 {[%clk 0:02:25]} 18. Bxa6 {[%clk 0:02:31]}  Rxa6 {[%clk 0:02:25]} 19. Qd3 {[%clk 0:02:15]}  Ra7 {[%clk 0:02:15]} 20. Na4 {[%clk 0:02:14]}  Nd7 {[%clk 0:01:43]} 21. Nxd7 {[%clk 0:02:13]}  Qxd7 {[%clk 0:01:43]} 22. Rfc1 {[%clk 0:02:12]}  Rc8 {[%clk 0:01:42]} 23. Nb6 {[%clk 0:02:12]}  Qc7 {[%clk 0:01:41]} 24. Nxc8 {[%clk 0:02:12]}  Qxc8 {[%clk 0:01:42]} 25. Rb6 {[%clk 0:02:07]}  Rc7 {[%clk 0:01:26]} 26. Qa6 {[%clk 0:02:07]} 1-0


[Site "https://www.chess.com"]

[Event "Titled Tuesday Blitz August 1 Late 2023"]
[White "Sari, Yasin"]
[Black "Volovich, Vasily"]
[WhiteFideId "6320902"]
[BlackFideId "34169676"]
[WhiteElo "2430"]
[BlackElo "2741"]
[Result "0-1"]
[Round "1"]
[TimeControl "180+1"]
[Date "2023.08.01"]
[WhiteClock "0:01:09"]
[BlackClock "0:01:56"]
[Board "57"]

1. e4 {[%clk 0:02:53]}  e6 {[%clk 0:02:53]} 2. d4 {[%clk 0:02:50]}  d5 {[%clk 0:02:52]} 3. exd5 {[%clk 0:02:50]}  exd5 {[%clk 0:02:51]} 4. Nf3 {[%clk 0:02:51]}  Nf6 {[%clk 0:02:51]} 5. Bd3 {[%clk 0:02:51]}  c5 {[%clk 0:02:51]} 6. dxc5 {[%clk 0:02:49]}  Bxc5 {[%clk 0:02:51]} 7. O-O {[%clk 0:02:47]}  O-O {[%clk 0:02:51]} 8. Bg5 {[%clk 0:02:47]}  h6 {[%clk 0:02:51]} 9. Bh4 {[%clk 0:02:47]}  g5 {[%clk 0:02:51]} 10. Bg3 {[%clk 0:02:37]}  Ne4 {[%clk 0:02:51]} 11. Nbd2 {[%clk 0:02:32]}  f5 {[%clk 0:02:50]} 12. Be5 {[%clk 0:02:27]}  Nc6 {[%clk 0:02:48]} 13. c3 {[%clk 0:02:19]}  g4 {[%clk 0:02:43]} 14. Bxe4 {[%clk 0:01:52]}  gxf3 {[%clk 0:02:05]} 15. Qxf3 {[%clk 0:01:26]}  dxe4 {[%clk 0:01:58]} 16. Qe2 {[%clk 0:01:09]}  Nxe5 {[%clk 0:01:56]} 0-1


[Site "https://www.chess.com"]

[Event "Titled Tuesday Blitz August 1 Late 2023"]
[White "Koellner, Ruben Gideon"]
[Black "Baches Garcia, Guillermo"]
[WhiteFideId "12993093"]
[BlackFideId "2209764"]
[WhiteElo "2741"]
[BlackElo "2429"]
[Result "1/2-1/2"]
[Round "1"]
[TimeControl "180+1"]
[Date "2023.08.01"]
[WhiteClock "0:00:17"]
[BlackClock "0:00:10"]
[Board "58"]

1. d4 {[%clk 0:02:59]}  Nf6 {[%clk 0:02:59]} 2. Nf3 {[%clk 0:02:59]}  e6 {[%clk 0:02:59]} 3. Nbd2 {[%clk 0:02:59]}  d5 {[%clk 0:02:59]} 4. e3 {[%clk 0:03:00]}  c5 {[%clk 0:02:59]} 5. c3 {[%clk 0:03:00]}  Nbd7 {[%clk 0:02:59]} 6. Ne5 {[%clk 0:02:59]}  Bd6 {[%clk 0:02:55]} 7. f4 {[%clk 0:02:59]}  O-O {[%clk 0:02:51]} 8. Bd3 {[%clk 0:02:58]}  b6 {[%clk 0:02:46]} 9. O-O {[%clk 0:02:58]}  Bb7 {[%clk 0:02:46]} 10. Qf3 {[%clk 0:02:58]}  Qe7 {[%clk 0:02:41]} 11. g4 {[%clk 0:02:58]}  Ne8 {[%clk 0:02:38]} 12. g5 {[%clk 0:02:58]}  a5 {[%clk 0:02:29]} 13. Bxh7+ {[%clk 0:02:56]}  Kxh7 {[%clk 0:02:27]} 14. Qh5+ {[%clk 0:02:57]}  Kg8 {[%clk 0:02:27]} 15. Rf3 {[%clk 0:02:58]}  g6 {[%clk 0:02:00]} 16. Qh6 {[%clk 0:02:49]}  Bxe5 {[%clk 0:01:54]} 17. Rh3 {[%clk 0:02:44]}  f5 {[%clk 0:01:45]} 18. Qxg6+ {[%clk 0:02:40]}  Ng7 {[%clk 0:01:11]} 19. fxe5 {[%clk 0:02:12]}  f4 {[%clk 0:01:02]} 20. Nf3 {[%clk 0:02:04]}  fxe3 {[%clk 0:00:49]} 21. Bxe3 {[%clk 0:02:05]}  cxd4 {[%clk 0:00:43]} 22. cxd4 {[%clk 0:01:53]}  Rf5 {[%clk 0:00:43]} 23. Nh4 {[%clk 0:01:52]}  Raf8 {[%clk 0:00:31]} 24. Nxf5 {[%clk 0:01:50]}  Rxf5 {[%clk 0:00:31]} 25. Rf1 {[%clk 0:01:45]}  Nf8 {[%clk 0:00:26]} 26. Qh6 {[%clk 0:01:28]}  Rxf1+ {[%clk 0:00:23]} 27. Kxf1 {[%clk 0:01:29]}  Qf7+ {[%clk 0:00:21]} 28. Qf6 {[%clk 0:01:20]}  Nd7 {[%clk 0:00:16]} 29. Qxf7+ {[%clk 0:01:19]}  Kxf7 {[%clk 0:00:16]} 30. Rh7 {[%clk 0:01:17]}  Nf8 {[%clk 0:00:15]} 31. Rh6 {[%clk 0:01:16]}  Ba6+ {[%clk 0:00:16]} 32. Kf2 {[%clk 0:01:16]}  Bd3 {[%clk 0:00:16]} 33. Rf6+ {[%clk 0:01:12]}  Ke7 {[%clk 0:00:15]} 34. h4 {[%clk 0:01:10]}  Ng6 {[%clk 0:00:14]} 35. Kg3 {[%clk 0:00:40]}  Nh5+ {[%clk 0:00:13]} 36. Kg4 {[%clk 0:00:40]}  Nxf6+ {[%clk 0:00:07]} 37. exf6+ {[%clk 0:00:41]}  Kf7 {[%clk 0:00:07]} 38. Kg3 {[%clk 0:00:28]}  Be2 {[%clk 0:00:07]} 39. Bd2 {[%clk 0:00:21]}  a4 {[%clk 0:00:07]} 40. Bb4 {[%clk 0:00:19]}  b5 {[%clk 0:00:06]} 41. Bd6 {[%clk 0:00:19]}  Bd1 {[%clk 0:00:05]} 42. a3 {[%clk 0:00:20]}  Be2 {[%clk 0:00:05]} 43. Bc7 {[%clk 0:00:18]}  Bd1 {[%clk 0:00:05]} 44. Ba5 {[%clk 0:00:18]}  Be2 {[%clk 0:00:06]} 45. Be1 {[%clk 0:00:17]}  Bd1 {[%clk 0:00:06]} 46. Bd2 {[%clk 0:00:10]}  Be2 {[%clk 0:00:06]} 47. Bc3 {[%clk 0:00:09]}  Bd1 {[%clk 0:00:06]} 48. Be1 {[%clk 0:00:10]}  Be2 {[%clk 0:00:06]} 49. Kf2 {[%clk 0:00:11]}  Bd1 {[%clk 0:00:06]} 50. Ke3 {[%clk 0:00:11]}  Nf8 {[%clk 0:00:05]} 51. Bg3 {[%clk 0:00:10]}  Nd7 {[%clk 0:00:05]} 52. Kd2 {[%clk 0:00:10]}  Kg6 {[%clk 0:00:06]} 53. Kc3 {[%clk 0:00:10]}  Be2 {[%clk 0:00:05]} 54. Kd2 {[%clk 0:00:10]}  Bc4 {[%clk 0:00:05]} 55. Bd6 {[%clk 0:00:09]}  Bf1 {[%clk 0:00:05]} 56. h5+ {[%clk 0:00:08]}  Kxh5 {[%clk 0:00:05]} 57. f7 {[%clk 0:00:08]}  Kxg5 {[%clk 0:00:05]} 58. f8=Q {[%clk 0:00:08]}  Nxf8 {[%clk 0:00:05]} 59. Bxf8 {[%clk 0:00:09]}  Kf5 {[%clk 0:00:05]} 60. Bg7 {[%clk 0:00:10]}  Ke4 {[%clk 0:00:06]} 61. Be5 {[%clk 0:00:10]}  Bc4 {[%clk 0:00:06]} 62. Kc3 {[%clk 0:00:11]}  Bb3 {[%clk 0:00:06]} 63. Kb4 {[%clk 0:00:12]}  Bc4 {[%clk 0:00:06]} 64. Kc5 {[%clk 0:00:10]}  Kf5 {[%clk 0:00:07]} 65. Kd6 {[%clk 0:00:10]}  Bd3 {[%clk 0:00:07]} 66. Kc6 {[%clk 0:00:09]}  Bc4 {[%clk 0:00:07]} 67. Kc5 {[%clk 0:00:09]}  Ke4 {[%clk 0:00:08]} 68. Kb4 {[%clk 0:00:10]}  Kf5 {[%clk 0:00:08]} 69. Kc3 {[%clk 0:00:11]}  Ke4 {[%clk 0:00:08]} 70. Kd2 {[%clk 0:00:12]}  Kf5 {[%clk 0:00:09]} 71. Ke3 {[%clk 0:00:13]}  Bb3 {[%clk 0:00:08]} 72. Bc7 {[%clk 0:00:13]}  Bc4 {[%clk 0:00:09]} 73. Ba5 {[%clk 0:00:14]}  Bb3 {[%clk 0:00:09]} 74. Bc7 {[%clk 0:00:15]}  Bc4 {[%clk 0:00:09]} 75. Be5 {[%clk 0:00:16]}  Bb3 {[%clk 0:00:10]} 76. Bd6 {[%clk 0:00:16]}  Bc4 {[%clk 0:00:10]} 77. Be5 {[%clk 0:00:17]} 1/2-1/2


[Site "https://www.chess.com"]

[Event "Titled Tuesday Blitz August 1 Late 2023"]
[White "Necromon"]
[Black "Tsaruk, Maksim"]
[BlackFideId "13511173"]
[WhiteElo "2428"]
[BlackElo "2740"]
[Result "0-1"]
[Round "1"]
[TimeControl "180+1"]
[Date "2023.08.01"]
[WhiteClock "0:00:53"]
[BlackClock "0:00:42"]
[Board "59"]

1. Nf3 {[%clk 0:02:50]}  c5 {[%clk 0:03:00]} 2. b3 {[%clk 0:02:27]}  Nc6 {[%clk 0:03:01]} 3. Bb2 {[%clk 0:02:27]}  Nf6 {[%clk 0:03:01]} 4. g3 {[%clk 0:02:26]}  g6 {[%clk 0:03:02]} 5. c4 {[%clk 0:02:26]}  Bg7 {[%clk 0:03:02]} 6. Bg2 {[%clk 0:02:27]}  O-O {[%clk 0:03:03]} 7. Nc3 {[%clk 0:02:27]}  e5 {[%clk 0:03:03]} 8. d3 {[%clk 0:02:26]}  d6 {[%clk 0:03:03]} 9. O-O {[%clk 0:02:27]}  Bg4 {[%clk 0:03:03]} 10. h3 {[%clk 0:02:26]}  Bxf3 {[%clk 0:03:02]} 11. Bxf3 {[%clk 0:02:27]}  Qd7 {[%clk 0:03:03]} 12. Nd5 {[%clk 0:02:24]}  Qxh3 {[%clk 0:03:01]} 13. Bg2 {[%clk 0:02:21]}  Qd7 {[%clk 0:02:59]} 14. e3 {[%clk 0:02:21]}  Nxd5 {[%clk 0:02:59]} 15. Bxd5 {[%clk 0:02:21]}  Ne7 {[%clk 0:02:59]} 16. Bg2 {[%clk 0:02:20]}  Rad8 {[%clk 0:02:58]} 17. d4 {[%clk 0:02:17]}  exd4 {[%clk 0:02:55]} 18. exd4 {[%clk 0:02:17]}  Nf5 {[%clk 0:02:35]} 19. Bh3 {[%clk 0:02:14]}  cxd4 {[%clk 0:02:22]} 20. Bxd4 {[%clk 0:02:09]}  Bxd4 {[%clk 0:02:09]} 21. Bxf5 {[%clk 0:02:09]}  Qxf5 {[%clk 0:02:10]} 22. Qxd4 {[%clk 0:02:09]}  b6 {[%clk 0:02:07]} 23. Rfe1 {[%clk 0:02:07]}  h5 {[%clk 0:02:05]} 24. Rad1 {[%clk 0:02:04]}  Rfe8 {[%clk 0:01:56]} 25. Rxe8+ {[%clk 0:02:01]}  Rxe8 {[%clk 0:01:56]} 26. Qxd6 {[%clk 0:02:01]}  h4 {[%clk 0:01:57]} 27. Qd3 {[%clk 0:01:34]}  Re1+ {[%clk 0:01:51]} 28. Kg2 {[%clk 0:01:28]}  h3+ {[%clk 0:01:51]} 29. Kh2 {[%clk 0:01:27]}  Qxf2+ {[%clk 0:01:26]} 30. Kxh3 {[%clk 0:01:27]}  Re2 {[%clk 0:01:08]} 31. Qd8+ {[%clk 0:01:14]}  Kg7 {[%clk 0:01:08]} 32. Qd4+ {[%clk 0:01:12]}  Qxd4 {[%clk 0:01:09]} 33. Rxd4 {[%clk 0:01:13]}  Rxa2 {[%clk 0:01:09]} 34. Kg4 {[%clk 0:01:13]}  Ra3 {[%clk 0:00:50]} 35. Rd7 {[%clk 0:01:03]}  a5 {[%clk 0:00:41]} 36. Rd3 {[%clk 0:00:53]}  a4 {[%clk 0:00:42]} 0-1


[Site "https://www.chess.com"]

[Event "Titled Tuesday Blitz August 1 Late 2023"]
[White "Matinian, Nikita"]
[Black "Tworuszka, Michal"]
[WhiteFideId "24129100"]
[BlackFideId "1117858"]
[WhiteElo "2738"]
[BlackElo "2428"]
[Result "0-1"]
[Round "1"]
[TimeControl "180+1"]
[Date "2023.08.01"]
[WhiteClock "0:00:00"]
[BlackClock "0:00:12"]
[Board "60"]

1. e4 {[%clk 0:03:00]}  c5 {[%clk 0:02:58]} 2. Nf3 {[%clk 0:02:58]}  e6 {[%clk 0:02:57]} 3. d4 {[%clk 0:02:58]}  cxd4 {[%clk 0:02:57]} 4. Nxd4 {[%clk 0:02:59]}  Nc6 {[%clk 0:02:58]} 5. Nc3 {[%clk 0:02:59]}  Qc7 {[%clk 0:02:57]} 6. Be3 {[%clk 0:02:56]}  a6 {[%clk 0:02:57]} 7. g4 {[%clk 0:02:55]}  Bb4 {[%clk 0:02:52]} 8. Nxc6 {[%clk 0:02:52]}  Qxc6 {[%clk 0:02:41]} 9. Qd4 {[%clk 0:02:51]}  Bxc3+ {[%clk 0:02:39]} 10. bxc3 {[%clk 0:02:52]}  Ne7 {[%clk 0:02:28]} 11. f3 {[%clk 0:02:40]}  O-O {[%clk 0:02:21]} 12. h4 {[%clk 0:02:39]}  d5 {[%clk 0:02:20]} 13. e5 {[%clk 0:02:37]}  f6 {[%clk 0:02:09]} 14. exf6 {[%clk 0:02:36]}  Rxf6 {[%clk 0:02:09]} 15. Be2 {[%clk 0:02:33]}  Qc7 {[%clk 0:01:51]} 16. f4 {[%clk 0:02:26]}  Nc6 {[%clk 0:01:47]} 17. Qd2 {[%clk 0:02:26]}  e5 {[%clk 0:01:44]} 18. f5 {[%clk 0:02:23]}  Rd6 {[%clk 0:01:30]} 19. O-O {[%clk 0:02:03]}  d4 {[%clk 0:01:27]} 20. Bf2 {[%clk 0:01:52]}  b5 {[%clk 0:01:19]} 21. Bf3 {[%clk 0:01:45]}  Bb7 {[%clk 0:01:19]} 22. Rae1 {[%clk 0:01:45]}  Re8 {[%clk 0:01:14]} 23. cxd4 {[%clk 0:01:41]}  Nxd4 {[%clk 0:01:02]} 24. Bxd4 {[%clk 0:01:28]}  Rxd4 {[%clk 0:00:59]} 25. Qg2 {[%clk 0:00:57]}  e4 {[%clk 0:00:39]} 26. Qf2 {[%clk 0:00:49]}  Qe5 {[%clk 0:00:35]} 27. Bg2 {[%clk 0:00:48]}  e3 {[%clk 0:00:32]} 28. Rxe3 {[%clk 0:00:07]}  Qxe3 {[%clk 0:00:29]} 29. Qxe3 {[%clk 0:00:07]}  Rxe3 {[%clk 0:00:28]} 30. Bxb7 {[%clk 0:00:07]}  Rxg4+ {[%clk 0:00:29]} 31. Kf2 {[%clk 0:00:08]}  Rf4+ {[%clk 0:00:27]} 32. Kxe3 {[%clk 0:00:08]}  Rxf1 {[%clk 0:00:28]} 33. Bxa6 {[%clk 0:00:09]}  Rxf5 {[%clk 0:00:26]} 34. Ke4 {[%clk 0:00:07]}  g6 {[%clk 0:00:26]} 35. c4 {[%clk 0:00:05]}  bxc4 {[%clk 0:00:24]} 36. Bxc4+ {[%clk 0:00:06]}  Kf8 {[%clk 0:00:23]} 37. a4 {[%clk 0:00:07]}  Ke7 {[%clk 0:00:22]} 38. Bd5 {[%clk 0:00:05]}  Kd6 {[%clk 0:00:22]} 39. Bg8 {[%clk 0:00:03]}  Rh5 {[%clk 0:00:21]} 40. Kf4 {[%clk 0:00:03]}  Rxh4+ {[%clk 0:00:22]} 41. Kg5 {[%clk 0:00:04]}  Rh5+ {[%clk 0:00:19]} 42. Kf6 {[%clk 0:00:05]}  Rf5+ {[%clk 0:00:17]} 43. Kg7 {[%clk 0:00:05]}  g5 {[%clk 0:00:16]} 44. Bxh7 {[%clk 0:00:06]}  Ra5 {[%clk 0:00:15]} 45. Kh6 {[%clk 0:00:04]}  g4 {[%clk 0:00:15]} 46. Be4 {[%clk 0:00:03]}  g3 {[%clk 0:00:15]} 47. Bf3 {[%clk 0:00:00]}  Rf5 {[%clk 0:00:12]} 0-1


[Site "https://www.chess.com"]

[Event "Titled Tuesday Blitz August 1 Late 2023"]
[White "Jorajuria Mendoza, Algol"]
[Black "Bakalchuk, Johnatan"]
[WhiteFideId "5128897"]
[BlackFideId "2810301"]
[WhiteElo "2425"]
[BlackElo "2737"]
[Result "0-1"]
[Round "1"]
[TimeControl "180+1"]
[Date "2023.08.01"]
[WhiteClock "0:00:00"]
[BlackClock "0:01:00"]
[Board "61"]

1. e4 {[%clk 0:03:00]}  c5 {[%clk 0:02:56]} 2. Nf3 {[%clk 0:03:01]}  g6 {[%clk 0:02:54]} 3. c3 {[%clk 0:03:00]}  d5 {[%clk 0:02:54]} 4. e5 {[%clk 0:03:01]}  Nc6 {[%clk 0:02:53]} 5. d4 {[%clk 0:02:59]}  Bg7 {[%clk 0:02:54]} 6. h3 {[%clk 0:02:43]}  cxd4 {[%clk 0:02:51]} 7. cxd4 {[%clk 0:02:43]}  Nh6 {[%clk 0:02:52]} 8. Bb5 {[%clk 0:02:37]}  O-O {[%clk 0:02:51]} 9. Bxc6 {[%clk 0:02:23]}  bxc6 {[%clk 0:02:52]} 10. O-O {[%clk 0:02:24]}  f6 {[%clk 0:02:51]} 11. exf6 {[%clk 0:02:17]}  exf6 {[%clk 0:02:52]} 12. Nc3 {[%clk 0:02:10]}  Nf7 {[%clk 0:02:51]} 13. Bf4 {[%clk 0:01:59]}  g5 {[%clk 0:02:45]} 14. Bg3 {[%clk 0:01:43]}  Bf5 {[%clk 0:02:26]} 15. Qa4 {[%clk 0:01:30]}  Qd7 {[%clk 0:02:23]} 16. Rac1 {[%clk 0:01:16]}  h5 {[%clk 0:02:21]} 17. h4 {[%clk 0:01:00]}  g4 {[%clk 0:01:42]} 18. Nd2 {[%clk 0:00:51]}  Bh6 {[%clk 0:01:42]} 19. Rcd1 {[%clk 0:00:46]}  Rae8 {[%clk 0:01:24]} 20. Qa6 {[%clk 0:00:45]}  Bc2 {[%clk 0:01:20]} 21. Nb3 {[%clk 0:00:38]}  Bxd1 {[%clk 0:01:18]} 22. Rxd1 {[%clk 0:00:39]}  f5 {[%clk 0:01:19]} 23. Nc5 {[%clk 0:00:38]}  Qc8 {[%clk 0:01:19]} 24. Qd3 {[%clk 0:00:25]}  Nh8 {[%clk 0:01:12]} 25. Bd6 {[%clk 0:00:21]}  Rf7 {[%clk 0:01:11]} 26. Ne2 {[%clk 0:00:18]}  Ng6 {[%clk 0:01:08]} 27. Ng3 {[%clk 0:00:16]}  Qd8 {[%clk 0:01:05]} 28. Be5 {[%clk 0:00:15]}  Nxe5 {[%clk 0:01:01]} 29. dxe5 {[%clk 0:00:16]}  Rxe5 {[%clk 0:01:01]} 30. Nxh5 {[%clk 0:00:16]}  Qxh4 {[%clk 0:01:01]} 31. Ng3 {[%clk 0:00:11]}  Bf4 {[%clk 0:01:00]} 32. Qc3 {[%clk 0:00:00]}  Rh7 {[%clk 0:01:00]} 0-1


[Site "https://www.chess.com"]